Cogmind - Beta 17 @@@ ROGUE MODE // 2026.08.23 @ 12:58:45 Player: frazz Result: Destroyed by G-47 Trooper with Particle Gun Performance ------------- Evolutions (3) 1500 Regions Visited (7) 1400 Robots Destroyed (50) 250 Value Destroyed (1828) 1828 Prototype IDs (4) 80 Alien Tech Used (0) 0 Bonus (0) 0 TOTAL SCORE: 5058 Bonus ------- None Cogmind --------- Core Integrity 0/700 Matter 35/300 Energy 340/340 System Corruption 6% Temperature Cool (25) Movement Walking (190) Ox1 Location -7/Factory Parts ------- > --- POWER (5) -------- Improved Deuterium Engine Micro Nuclear Core > --- PROPULSION (3) --- Carbon-fiber Leg > --- UTILITY (2) ------ Advanced Terrain Scan Processor > --- WEAPON (3) ------- Gatling Laser Gauss Rifle > --- INVENTORY (5) ---- Medium Treads Flak Gun Peak State ------------ > --- POWER ------------ Improved Deuterium Engine Micro Nuclear Core Micro Nuclear Core > --- PROPULSION ------- Light Treads Light Treads Medium Treads > --- UTILITY ---------- Advanced Terrain Scan Processor EM Disruption Field > --- WEAPON ----------- Gatling Laser Flak Gun Heavy Missile Launcher > --- INVENTORY -------- Carbon-fiber Leg Gauss Rifle Flak Gun [Rating: 39] Favorites ----------- Power Ion Engine Engine Ion Engine Power Core Micro Nuclear Core Propulsion Aluminum Leg Treads Light Treads Leg Aluminum Leg Hover Unit Gravmag System Utility Small Storage Unit Device Heat Sink Storage Small Storage Unit Processor Advanced Terrain Scan Processor Weapon Assault Rifle Energy Gun EM Pulse Gun Energy Cannon Ion Cannon Ballistic Gun Assault Rifle Launcher Grenade Launcher Slashing Weapon Greatsword Build | -11 -10 -9 -9 -9 -8 -8 -7 ------- Run | Yrd Mat Mat Min Exi Min Mat Fac Slots Evolved 6 | . . 2 . . . 2 2 Power 4 | . . 2 . . . . 2 Propulsion 1 | . . . . . . 1 . Utility . | . . . . . . . . Weapon 1 | . . . . . . 1 . Parts Attached 48 | 6 2 2 . . 2 13 23 Power 9 | 1 . 2 . . 1 1 4 Engine 7 | 1 . 2 . . 1 1 2 Core 2 | . . . . . . . 2 Reactor . | . . . . . . . . Propulsion 15 | 2 . . . . . 5 8 Treads 3 | . . . . . . . 3 Leg 11 | 2 . . . . . 5 4 Wheel . | . . . . . . . . Hover 1 | . . . . . . . 1 Flight . | . . . . . . . . Utility 6 | 1 1 . . . . 1 3 Device 4 | . 1 . . . . 1 2 Storage 1 | 1 . . . . . . . Processor 1 | . . . . . . . 1 Hackware . | . . . . . . . . Protection . | . . . . . . . . Artifact . | . . . . . . . . Weapon 18 | 2 1 . . . 1 6 8 Energy Gun 5 | 1 . . . . . 1 3 Energy Cannon 4 | . . . . . . 3 1 Ballistic Gun 5 | 1 1 . . . . 1 2 Ballistic Cannon . | . . . . . . . . Launcher 3 | . . . . . 1 1 1 Special Weapon . | . . . . . . . . Impact Weapon . | . . . . . . . . Slashing Weapon 1 | . . . . . . . 1 Piercing Weapon . | . . . . . . . . Special Melee Weapon . | . . . . . . . . Unidentified Prototypes 2 | . . . . . . 1 1 Parts Lost 33 | . . . . . 3 18 12 Power 6 | . . . . . 2 3 1 Propulsion 10 | . . . . . . 6 4 Utility 4 | . . . . . . 1 3 Weapon 13 | . . . . . 1 8 4 Highest Loss Streak 5 | . . . . . 2 5 4 To Critical Strikes . | . . . . . . . . Average Backups 5 | 1 4 6 7 8 6 5 3 Power . | . 1 . . 1 . . . Propulsion 1 | . 1 2 2 2 2 2 1 Utility 1 | . . . 1 2 2 2 1 Weapon 1 | . 1 2 3 3 2 . 1 Tool/Special . | . . . . . . . . Unused Backups 10 | . 1 1 3 . . . 5 Power 1 | . 1 . . . . . . Propulsion 1 | . . 1 . . . . . Utility 5 | . . . 1 . . . 4 Weapon 2 | . . . 1 . . . 1 Tool/Special 1 | . . . 1 . . . . Average Slot Usage (%) 74 | . 92 97 100 100 90 55 51 Engine 17 | . 14 30 33 33 24 5 5 Core 1 | . . . . . . . 4 Leg 16 | . 28 22 22 22 22 15 8 Device 7 | . 7 11 11 11 11 5 3 Storage 7 | . 14 11 11 11 11 9 2 Processor 2 | . . . . . . . 6 Energy Gun 6 | . 14 11 11 11 . 2 4 Energy Cannon 1 | . . . . . . 8 1 Ballistic Gun 8 | . 14 11 11 11 11 3 6 Launcher 1 | . . . . . 10 4 . Peak Build Rating 39 | 6 7 9 11 10 10 23 39 Average Rating 15 | 4 6 8 9 10 8 12 25 On Entrance 7 | . 6 7 9 10 10 8 6 Avg Prop Armor Cover (%) 4 | . . . . . . . 4 Naked Turns . | . . . . . . . . Heaviest Build 41 | 14 15 23 23 23 24 28 41 Greatest Support 68 | 20 20 20 20 20 20 37 68 Greatest Overweight (x) 4 | . . 1 1 1 1 3 4 Average Overweight (x) . | . . . 1 1 . . . Largest Inventory Capacity 8 | 8 8 8 8 8 8 8 8 Average Capacity 7 | 6 8 8 8 8 8 8 5 Most Carried 8 | 5 8 8 8 8 8 8 8 Average Carried 5 | 1 4 6 7 8 6 5 3 Final Capacity 8 | 8 8 8 8 8 8 8 5 Final Carried 8 | 2 8 7 8 8 6 4 2 Class Distribution -------------------- 78% | Mutant 13% | Gunner 6% | Generator-Mutant Dominant Class ---------------- Mutant | -10/Materials Mutant | -9/Materials Mutant | -9/Mines Mutant | -9/Exiles Mutant | -8/Mines Gunner | -8/Materials Mutant | -7/Factory Resources | -11 -10 -9 -9 -9 -8 -8 -7 ----------- Run | Yrd Mat Mat Min Exi Min Mat Fac Matter Collected 962 | 230 53 50 12 . 49 300 268 Remotely . | . . . . . . . . Salvage Created 1630 | . 92 60 32 . 57 884 505 Parts 86 | . 5 2 4 . 11 32 32 Haulers Intercepted 1 | . . . . . . 1 . Recyclers Shooed 2 | . . . . . . 2 . Parts Field Recycled . | . . . . . . . . Retrieved Matter . | . . . . . . . . Parts Self-Destructed . | . . . . . . . . Prevented . | . . . . . . . . Parts Restored . | . . . . . . . . Kills | -11 -10 -9 -9 -9 -8 -8 -7 ------- Run | Yrd Mat Mat Min Exi Min Mat Fac Combat Hostiles Destroyed 43 | . 2 1 2 . 7 20 11 Melee 1 | . . . . . . . 1 Guns 18 | . 2 1 2 . 1 2 10 Cannons 5 | . . . . . . 5 . AOE 18 | . . . . . 6 12 . Classes Destroyed 11 | . 1 1 1 . . 7 1 Worker 1 | . . . . . . 1 . Builder 2 | . . . . . . 1 1 Hauler 1 | . . . . . . 1 . Recycler 2 | . . . . . . 2 . Watcher 1 | . . . . . . 1 . Swarmer 12 | . . . 2 . 7 3 . Grunt 17 | . 2 . . . . 14 1 Brawler 1 | . . . . . . 1 . Sentry 6 | . . 1 . . . . 5 Hunter 3 | . . . . . . 2 1 Programmer 4 | . . . . . . . 4 Best Kill Streak 7 | . 1 1 2 . 3 7 2 Combat Bots Only 5 | . 1 1 2 . 3 5 2 Max Kills in Single Turn 4 | . 1 1 1 . 3 4 1 Gunslinging . | . . . . . . . . Exploded 3 | . . . . . 3 3 . Melee 1 | . . . . . . . 1 Uniques/NPCs Destroyed . | . . . . . . . . Combat | -11 -10 -9 -9 -9 -8 -8 -7 -------- Run | Yrd Mat Mat Min Exi Min Mat Fac Hostile Shots Fired 643 | . 6 12 5 . 43 205 372 Missed 213 | . 1 3 3 . 13 61 132 Hits 430 | . 5 9 2 . 30 144 240 Projectile 430 | . 5 9 2 . 30 144 240 Critical Strikes 7 | . . . . . . 5 2 Part Disruptions 1 | . . . . . . . 1 Damage Taken 4572 | . 116 125 14 . 271 1840 2206 Core 1360 | . 57 25 . . 18 547 713 Absorbed by Shields 95 | . . . . . . . 95 Core Remaining (%) 66 | 100 77 . . . 89 . . Volleys Fired 152 | . 5 7 3 . 17 53 67 Largest 3 | . 2 2 2 . 2 3 3 Hottest 153 | . 60 60 60 . 60 153 147 Shots Fired 241 | . 10 14 6 . 22 95 94 Gun 171 | . 10 14 6 . 19 36 86 Cannon 44 | . . . . . . 38 6 Launcher 26 | . . . . . 3 21 2 Special . | . . . . . . . . Kinetic 93 | . 5 7 3 . 17 21 40 Thermal 95 | . . . . . . 43 52 Explosive 26 | . . . . . 3 21 2 Electromagnetic 27 | . 5 7 3 . 2 10 . Robot Hit Streak 19 | . 2 8 2 . 3 12 19 Robot Miss Streak 11 | . 1 2 1 . 5 3 11 Penetration Max . | . . . . . . . . Secondary Targets . | . . . . . . . . Shots Hit Robots 156 | . 6 9 3 . 5 58 75 Core Hits 124 | . 3 3 2 . 8 49 59 Critical Kills . | . . . . . . . . Critical Parts Destroyed . | . . . . . . . . Critical Strikes 3 | . . . . . . 2 1 Burn 2 | . . . . . . 2 . Sever 1 | . . . . . . . 1 Melee Attacks 4 | . . . . . . . 4 Impact . | . . . . . . . . Slashing 4 | . . . . . . . 4 Piercing . | . . . . . . . . Sneak Attacks . | . . . . . . . . Combat Hostiles . | . . . . . . . . Follow-up Attacks . | . . . . . . . . Damage Inflicted 5124 | . 120 129 40 . 281 2846 1708 Guns 2033 | . 82 129 40 . 79 385 1318 Cannons 588 | . . . . . . 513 75 Explosions 2335 | . 38 . . . 202 1948 147 Melee 159 | . . . . . . . 159 Ramming 9 | . . . . . . . 9 Kinetic 957 | . 40 50 28 . 67 222 550 Thermal 1907 | . 38 . . . . 933 936 Explosive 1703 | . . . . . 202 1453 48 Electromagnetic 389 | . 42 79 12 . 12 238 6 Impact . | . . . . . . . . Slashing 159 | . . . . . . . 159 Piercing . | . . . . . . . . Highest Corruption 6 | . . . . . . . 6 Average Corruption 3 | . . . . . . . 3 Corruption Purged . | . . . . . . . . Corruption Blocked . | . . . . . . . . Effects 29 | . . . . . . . 29 Message Errors 7 | . . . . . . . 7 Matter Fused 6 | . . . . . . . 6 Heat Flow Errors 3 | . . . . . . . 3 Energy Discharges 4 | . . . . . . . 4 Data Loss (minor) 4 | . . . . . . . 4 Data Loss (major) 1 | . . . . . . . 1 Misfires 1 | . . . . . . . 1 Alerts 1 | . . . . . . . 1 Weapon Failures 2 | . . . . . . . 2 Overload Shots . | . . . . . . . . Overflow Damage 187 | . . . . . 4 104 79 Projectiles . | . . . . . . . . Explosions 181 | . . . . . 4 104 73 Melee 6 | . . . . . . . 6 Knockbacks . | . . . . . . . . Impact . | . . . . . . . . Kinetic . | . . . . . . . . Secondary . | . . . . . . . . Self-Inflicted Damage 198 | . 45 . . . 27 117 9 Shots 8 | . 1 . . . 1 5 1 Rammed 7 | . . . . . . . 7 Targets Rammed 7 | . . . . . . . 7 Kicked . | . . . . . . . . Crushed . | . . . . . . . . Highest Temperature 615 | . 2 6 . . . 105 615 Average Temperature 120 | . 1 4 . . . 33 139 Received Heat Transfer 1069 | . 42 63 . . . 495 469 Effects 26 | . . . . . . . 26 Shutdowns 10 | . . . . . . . 10 Energy Bleed 3 | . . . . . . . 3 Interference 1 | . . . . . . . 1 Matter Decay 3 | . . . . . . . 3 Short Circuit 1 | . . . . . . . 1 Damage (minor) 1 | . . . . . . . 1 Damage (major) 6 | . . . . . . . 6 Damage (core) 1 | . . . . . . . 1 Siege Activations . | . . . . . . . . Martial Activations . | . . . . . . . . Shielding Activations . | . . . . . . . . Robots Disrupted . | . . . . . . . . Combat Hostiles . | . . . . . . . . Robots Corrupted . | . . . . . . . . Combat Hostiles . | . . . . . . . . Parts Fried . | . . . . . . . . Impact Corruptions . | . . . . . . . . Robots Melted 1 | . . . . . . 1 . Combat Hostiles 1 | . . . . . . 1 . Parts Melted 2 | . . . . . . 1 1 Heat Transferred 2751 | . 50 . . . . 1423 1278 Parts Sabotaged . | . . . . . . . . Parts Stolen . | . . . . . . . . Parts Stripped . | . . . . . . . . Power Chain Reactions 2 | . 1 . . . . 1 . Alert | -11 -10 -9 -9 -9 -8 -8 -7 ------- Run | Yrd Mat Mat Min Exi Min Mat Fac Maximum Alert Level 2 | . . . . . . 2 . Low Security (%) 89 | 100 100 100 100 . 100 36 100 Level 1 10 | . . . . . . 61 . Level 2 . | . . . . . . 2 . Level 3 . | . . . . . . . . Level 4 . | . . . . . . . . Level 5 . | . . . . . . . . High Security . | . . . . . . . . Max Security . | . . . . . . . . Peak Influence 401 | . 30 30 53 . 115 401 192 Initial 175 | . . 5 3 . . . 175 Average 75 | . 8 6 3 . 50 210 77 Influence Increases 1669 | . 70 30 55 . 175 835 504 Destroy 0b10 Robot/C 860 | . 40 20 40 . 140 400 220 Destroy 0b10 Robot/NC 35 | . . . . . . 30 5 Destroy Leader 224 | . 10 10 10 . 20 74 100 Successful Hack 77 | . 13 . 5 . . 30 29 Disable Machine 165 | . . . . . . 90 75 Destroy Structure 203 | . 7 . . . 15 136 45 Partial Spotted 15 | . . . . . . . 15 Lose Combat Pursuer 90 | . . . . . . 75 15 Influence Decreases 1579 | . 56 34 65 . 175 450 799 Entered New Map 226 | . . 9 7 . . . 210 Time Decay 1043 | . 56 25 58 . 155 260 489 Lost Part 290 | . . . . . 20 170 100 Purge Threat 20 | . . . . . . 20 . Squads Dispatched 11 | . . . . . . 3 8 Investigation 1 | . . . . . . 1 . Extermination 4 | . . . . . . . 4 Reinforcement 3 | . . . . . . 2 1 Assault . | . . . . . . . . Garrison 3 | . . . . . . . 3 Intercept . | . . . . . . . . Searches Triggered . | . . . . . . . . Construction Impeded 2 | . . . . . . 2 . Haulers Reinforced 1 | . . . . . . . 1 Active Scanning Responses . | . . . . . . . . Cargo Convoy Interrupts . | . . . . . . . . Stealth | -11 -10 -9 -9 -9 -8 -8 -7 --------- Run | Yrd Mat Mat Min Exi Min Mat Fac Distress Signals 3 | . . 1 . . . 1 1 Communications Jammed . | . . . . . . . . Distress Signals . | . . . . . . . . Times Spotted 71 | . 2 7 2 . 7 34 19 Peak Tracking Total 8 | . 1 4 2 . 4 8 2 Tactical Retreats 5 | . . . . . . 4 1 Traps | -11 -10 -9 -9 -9 -8 -8 -7 ------- Run | Yrd Mat Mat Min Exi Min Mat Fac Traps Triggered . | . . . . . . . . Indirectly . | . . . . . . . . Trap Hack Attempts . | . . . . . . . . Triggered . | . . . . . . . . Disarmed . | . . . . . . . . Reprogrammed . | . . . . . . . . Reused . | . . . . . . . . Traps Extracted . | . . . . . . . . Installed . | . . . . . . . . Triggered . | . . . . . . . . Machines | -11 -10 -9 -9 -9 -8 -8 -7 ---------- Run | Yrd Mat Mat Min Exi Min Mat Fac Machines Disabled 11 | . . . . . . 6 5 Max in Single Turn 4 | . . . . . . 2 4 Machines Repaired . | . . . . . . . . Machines Dismantled . | . . . . . . . . Machines Sabotaged . | . . . . . . . . Overloaded Fab Kills . | . . . . . . . . Hacking | -11 -10 -9 -9 -9 -8 -8 -7 --------- Run | Yrd Mat Mat Min Exi Min Mat Fac Machines Accessed 18 | . 2 . 2 . . 5 9 Terminals 13 | . 2 . 1 . . 3 7 Fabricators . | . . . . . . . . Repair Stations . | . . . . . . . . Recycling Units 2 | . . . . . . . 2 Scanalyzers 2 | . . . . . . 2 . Garrison Access . | . . . . . . . . Total Hacks 47 | . 5 . 4 . . 19 19 Successful 29 | . 5 . 2 . . 13 9 Failed 18 | . . . 2 . . 6 10 Catastrophic 2 | . . . . . . 1 1 Database Lockouts . | . . . . . . . . Manual . | . . . . . . . . Terminals 35 | . 5 . 3 . . 12 15 Fabricators . | . . . . . . . . Repair Stations . | . . . . . . . . Recycling Units 4 | . . . . . . . 4 Scanalyzers 7 | . . . . . . 7 . Garrison Access . | . . . . . . . . Terminal Hacks 22 | . 5 . 2 . . 7 8 Record 5 | . . . . . . 1 4 Part Schematic 1 | . . . . . . . 1 Prototype ID Bank 1 | . 1 . . . . . . Open Door 1 | . . . 1 . . . . Open DSF 2 | . . . . . . . 2 Alert Level 3 | . 1 . . . . 2 . Unreport Threat 1 | . . . . . . 1 . Locate Traps 5 | . 2 . . . . 2 1 Dispatch Records 1 | . . . . . . 1 . Transport Status 1 | . 1 . . . . . . Zone Layout 1 | . . . 1 . . . . Fabricator Hacks . | . . . . . . . . Repair Station Hacks . | . . . . . . . . Recycling Unit Hacks 1 | . . . . . . . 1 Process 1 | . . . . . . . 1 Scanalyzer 6 | . . . . . . 6 . Insert Component 2 | . . . . . . 2 . Analyze 2 | . . . . . . 2 . Retrieve Study 2 | . . . . . . 2 . Garrison Access Hacks . | . . . . . . . . Unauthorized Hacks . | . . . . . . . . Terminals . | . . . . . . . . Fabricators . | . . . . . . . . Repair Stations . | . . . . . . . . Recycling Units . | . . . . . . . . Scanalyzers . | . . . . . . . . Garrison Access . | . . . . . . . . Data Cores Recovered . | . . . . . . . . Used . | . . . . . . . . Hacking Detections 14 | . 1 . 1 . . 5 7 Full Trace Events 1 | . . . . . . 1 . Feedback Events . | . . . . . . . . Feedback Blocked . | . . . . . . . . Robot Schematics Acquired . | . . . . . . . . Robots Built . | . . . . . . . . Authchips . | . . . . . . . . Time . | . . . . . . . . Total Robot Build Rating . | . . . . . . . . Part Schematics Acquired 3 | . . . . . . 2 1 Parts Built . | . . . . . . . . Authchips . | . . . . . . . . Time . | . . . . . . . . Total Part Build Rating . | . . . . . . . . Part Studies Acquired 2 | . . . . . . 2 . Parts Repaired . | . . . . . . . . Time . | . . . . . . . . Parts Recycled . | . . . . . . . . Recycled Matter . | . . . . . . . . Retrieved Matter . | . . . . . . . . Retrieved Components . | . . . . . . . . Parts Scanalyzed 2 | . . . . . . 2 . Part Schematics Acquired 2 | . . . . . . 2 . Parts Damaged . | . . . . . . . . Bothacking | -11 -10 -9 -9 -9 -8 -8 -7 ------------ Run | Yrd Mat Mat Min Exi Min Mat Fac Used RIF Installer . | . . . . . . . . Robots Hacked . | . . . . . . . . Non-combat . | . . . . . . . . Combat . | . . . . . . . . Robot Hacks Applied . | . . . . . . . . Relay Couplers Released . | . . . . . . . . Fabnet Peak Effective % . | . . . . . . . . Robots Rewired . | . . . . . . . . Allies Hacked . | . . . . . . . . Hacks Repelled . | . . . . . . . . Allies | -11 -10 -9 -9 -9 -8 -8 -7 -------- Run | Yrd Mat Mat Min Exi Min Mat Fac Total Allies . | . . . . . . . . Largest Group . | . . . . . . . . Highest-Rated Group . | . . . . . . . . Highest-Rated Ally . | . . . . . . . . Total Orders . | . . . . . . . . Ally Attacks . | . . . . . . . . Total Damage . | . . . . . . . . Kills . | . . . . . . . . Allies Corrupted . | . . . . . . . . Allies Melted . | . . . . . . . . Intel | -11 -10 -9 -9 -9 -8 -8 -7 ------- Run | Yrd Mat Mat Min Exi Min Mat Fac Active Infowar (turns) . | . . . . . . . . Robot Analysis Total . | . . . . . . . . Derelict Logs Recovered . | . . . . . . . . Drone Launches . | . . . . . . . . Drone Recoveries . | . . . . . . . . Exploration | -11 -10 -9 -9 -9 -8 -8 -7 ------------- Run | Yrd Mat Mat Min Exi Min Mat Fac Turns Passed 5060 | 75 216 199 867 751 366 736 1850 Spaces Moved 2833 | 63 150 88 430 396 248 396 1062 Core 123 | 25 . . . . . 44 54 Treads 44 | . . . . . . . 44 Legs 2555 | 38 150 88 430 396 248 352 853 Wheels . | . . . . . . . . Hover 111 | . . . . . . . 111 Flight . | . . . . . . . . Fastest Speed 50 | 50 120 120 190 190 120 100 100 Average Speed 153 | 92 120 182 190 190 126 130 145 Slowest Speed 260 | 120 120 190 190 190 190 200 260 Overloaded Moves . | . . . . . . . . Propulsion Burnouts . | . . . . . . . . Robots Hopped . | . . . . . . . . Potential Cave-ins . | . . . . . . . . Cave-ins Triggered . | . . . . . . . . Exploration Rate (%) 42 | 5 27 13 79 78 65 41 28 Regions Visited 7 Branch Regions 3 Pre-discovered Areas 1 | . . . 1 . . . . Known Exits Taken . | . . . . . . . . Unknown Exits Taken 7 | 1 1 1 1 1 1 1 . Scrap Searched 1 | . . . 1 . . . . Spaces Dug . | . . . . . . . . Terrain Destroyed 216 | . 8 . . . 15 141 52 Melee . | . . . . . . . . Projectile 5 | . . . . . . 5 . AOE 211 | . 8 . . . 15 136 52 Terrain Rammed . | . . . . . . . . Walls Destroyed . | . . . . . . . . Machines Disabled . | . . . . . . . . Actions | -11 -10 -9 -9 -9 -8 -8 -7 --------- Run | Yrd Mat Mat Min Exi Min Mat Fac Total 3325 | 80 176 113 476 395 277 537 1271 Wait 202 | 4 11 14 37 . 11 61 64 Move 2826 | 62 149 87 429 395 247 395 1062 Hop . | . . . . . . . . Pick Up 61 | 8 8 2 4 . . 12 27 Fast Attach . | . . . . . . . . Attach 51 | 6 1 2 . . 2 14 26 Detach 2 | . . . . . . . 2 Swap 2 | . 1 . . . . 1 . Drop 18 | . 1 1 3 . . 1 12 Fire 152 | . 5 7 3 . 17 53 67 Melee 4 | . . . . . . . 4 Ram 7 | . . . . . . . 7 Kick . | . . . . . . . . Crush . | . . . . . . . . Escape Stasis . | . . . . . . . . Rewire . | . . . . . . . . Trap . | . . . . . . . . Miscellaneous . | . . . . . . . . Route ------- -11/Scrapyard -10/Materials -9/Materials -9/Mines -9/Exiles (discovered 2 exits: [*Min x2]) -8/Mines (discovered 2 exits: *Mat x2) -8/Materials -7/Factory History --------- Turn | Location | Event 5 | -11/Scrapyard | Discovered new exit (range 15) 76 | -11/Scrapyard | Entered Materials 287 | -10/Materials | Discovered new exit (range 3) 292 | -10/Materials | Entered another Materials area 292 | -9/Materials | Evolved 2 slots: Power x2 327 | -9/Materials | Build established: Mutant 462 | -9/Materials | Discovered new exit (range 16) 491 | -9/Materials | Entered Mines 633 | -9/Mines | Found the Drone Emporium 642 | -9/Mines | Found Prototype Device 739 | -9/Mines | Learned location of Storage (-8) 801 | -9/Mines | YI-UF0 nonchalantly dropped a Grenade Launcher on the ground 1349 | -9/Mines | Deemed a non-threat by the Exiles lab entrance 1350 | -9/Mines | Discovered new exit (range 5) 1358 | -9/Mines | Entered Exiles 1393 | -9/Exiles | Discovered new exit (range 14) 1442 | -9/Exiles | Met 8R-AWN 1469 | -9/Exiles | Met EX-HEX 1541 | -9/Exiles | Met EX-DEC 1605 | -9/Exiles | Visited The Gauntlet 1883 | -9/Exiles | Discovered new exit (range 14) 2109 | -9/Exiles | Entered Mines 2404 | -8/Mines | Discovered new exit (range 8) 2463 | -8/Mines | Discovered new exit (range 10) 2475 | -8/Mines | Entered Materials 2475 | -8/Materials | Evolved 2 slots: Propulsion x1, Weapon x1 2588 | -8/Materials | Lost 3 parts (1n2w) 2717 | -8/Materials | Lost 4 parts (2p1n1w) 2831 | -8/Materials | Lost 3 parts (1p2n) 3002 | -8/Materials | Core integrity fell below 50% 3024 | -8/Materials | Core integrity fell below 20% 3045 | -8/Materials | Lost 5 parts (1n4w) 3195 | -8/Materials | Discovered new exit (range 16) 3211 | -8/Materials | Entered Factory 3211 | -7/Factory | Evolved 2 slots: Power x2 3744 | -7/Factory | Garrison activated, responded to threat 3837 | -7/Factory | Lost 4 parts (1n1u2w) 3926 | -7/Factory | Core integrity fell below 50% 4557 | -7/Factory | Core integrity fell below 20% 4874 | -7/Factory | Build established: Generator-Mutant 4950 | -7/Factory | Lost 3 parts (1n1u1w) 5061 | -7/Factory | Destroyed by G-47 Trooper with Particle Gun Last Messages --------------- Power failure, Mic. Nuclear Core shutdown. >,XFH6NEQQOYUPZ/VW4TXNOV#M Imp. Deuterium Engine destroyed. MT |3DO3VFKHJB8YNWGBTW%5YJ,NM Dropped Broken Mic. Nuclear Core. Slug penetrates G-47 Trooper. G-47 Trooper destroyed. Acquired 46 matter. A-02 Transporter calls for reinforcements. ALERT: Hostile activity reported, dispatching reinforcements to area. Use the buttons at the bottom right of the parts list, or press c/e/w/q, to visualize various stats related to parts and inventory items. System corrupted: Matter fused (-8). Slug penetrates Wall. R-06 Scavenger collects Terrain Scan Processor. R-06 Scavenger collects Imp. Heat Sink. System corrupted: IFF burst signal emitted. System corrupted: Matter fused (-8). Map ----- +----------------------------------------------------+ | ????????????????????????????# # | | ????????????????????????????# # | | ????????????????????????????# # | | ?????????????????????????????? ### | | ???????????????????????????????? ##??# | | ??????????????????????????????????? ###????# | | ???????????????????????????????????????????# | | ?????????????????????????????############### | | ?????????????????????????????# ## | | ?????????????????????????????# ## | | ?????????????????????????????# # | | ?????????????????????????????# # | | ?????????????????????????????# # | | ?????????????????????????????# # | | ?????????????????????????????# + T | | ?????????????????????????????# # | | ?????????????????????????????# # | | ?????????????????????????????# # ! | | ?????????????????????????????# # | | ?????????????????????????????# ### | | ????????????########+######################## | | ??????????? | | ??????????? | | ?????????? | | ?????????? % | | ?????????? a @g % | | ?????????????????###+######+#############+#####+## | | ???????????????????????# ## *[= # | | ???????????????????????# """" ## """" """" # | | ???????????????????????# """" ## """" """" # | | ???????????????????????# """" ## """" """" # | | ???????????????????????# """" ## """" """" # | | ???????????????????????# ## """" """" # | | ???????????????????????# ## """" """" # | | ???????????????????????# = ## """" """" # | | ???????????????????????# ## # | | ???????????????????????########### # | | ?????????????????????????????????# ! # | | ?????????????????????????????????# ##### | | ?????????????????????????????????#############???? | | | | | | | | | | | | | | | | | | | | | +----------------------------------------------------+ Best States ------------- Heat Dissipation 45 Energy Generation 47 Energy Capacity 580 Matter Stores 300 Matter Capacity 300 Sight Range 16 Terrain Scan Density 210 Evasion (%) 55 Recoil Reduction 3 Item Schematics ----------------- Aluminum Leg | -8/Materials | Scanalyzed Terrain Scan Processor | -8/Materials | Scanalyzed Imp. Component Analysis Suite | -7/Factory | Hacked Robot Schematics ------------------ None Fabricated ------------ Nothing Repaired ---------- Nothing Studied --------- Aluminum Leg | -8/Materials | Hacked Imp. Aluminum Leg | -8/Materials | Hacked Alien Tech Used ----------------- None Achievements -------------- Everything Is Under Control It's Just You Overwhelming Remodeling Troublemaker Challenges ------------ None Game ------ Seed ChromaticReactionLegs Manual? 0 Play Time 00:59:42 Cumulative 4.5 hours Start 2026.08.23 @ 12:01:09 End 2026.08.23 @ 12:58:45 Sessions 1 Manual Loads 0 Difficulty Rogue Special Mode None Game No. 6 Rogue 4 Adventurer 2 Explorer 0 Win Type - Total 0 Types 0/0/0/0/0/0/0/0/0/0 Lore% 4 Gallery% 6 Achievement% 8 Wizard Run 0 Options --------- Layout 2 ASCII 1 Keyboard 0 Movement Numpad Keybinds 0 Fullscreen 1 Font 24/Smallcaps Map View 50x44 Zoom Use 0% Tactical HUD 0 Map Filters NONE Filters NONE Steam 1 RUN: b541bb64-c5e7-428e-841c-f6a625cf6560